Cogmind - Beta 16.1 @@@ ROGUE MODE // 2026.03.01 @ 18:29:29 Player: N.W.L. Result: Destroyed by KK-S3V(R) with Subdweller Laser Performance ------------- Evolutions (0) 0 Regions Visited (2) 400 Robots Destroyed (51) 255 Value Destroyed (1076) 1076 Prototype IDs (13) 260 Alien Tech Used (0) 0 Bonus (0) 0 TOTAL SCORE: 1991 Bonus ------- None Cogmind --------- Core Integrity 0/250 Matter 256/300 Energy 130/170 System Corruption 2% Temperature Warm (120) Movement Treading (260) Ox1 Location -10/Subcaves Parts ------- > --- POWER (1) -------- Makeshift Power Source > --- PROPULSION (2) --- Spiked Treads > --- UTILITY (2) ------ Scrap Shield > --- WEAPON (2) ------- Subdweller Beam Cannon Subdweller Beam Cannon > --- INVENTORY (5) ---- Cobbler Unit Rainbow Chip Subdweller Beam Cannon Subdweller Shrapnel Launcher Peak State ------------ > --- POWER ------------ Makeshift Power Source > --- PROPULSION ------- Light Treads Spiked Treads > --- UTILITY ---------- Scrap Shield > --- WEAPON ----------- Subdweller Beam Cannon Subdweller Beam Cannon > --- INVENTORY -------- Improved Terrain Scanner Cobbler Unit Rainbow Chip Subdweller Beam Cannon [Rating: 17] Favorites ----------- Power Subdweller Power Source Engine Subdweller Power Source Propulsion Light Treads Treads Light Treads Utility Scrap Shield Device Seismic Detector Storage Medium Storage Unit Hackware Hacking Suite Protection Scrap Shield Weapon Subdweller Beam Cannon Energy Gun Medium Laser Energy Cannon Subdweller Beam Cannon Ballistic Gun Barrage Gun Ballistic Cannon Light Cannon Launcher Subdweller Shrapnel Launcher Build | -11 -10 -10 ------- Run | Yrd Mat Sub Slots Evolved . | . . . Power . | . . . Propulsion . | . . . Utility . | . . . Weapon . | . . . Parts Attached 35 | 6 12 17 Power 7 | 1 1 5 Engine 7 | 1 1 5 Core . | . . . Reactor . | . . . Propulsion 5 | 2 1 2 Treads 5 | 2 1 2 Leg . | . . . Wheel . | . . . Hover . | . . . Flight . | . . . Utility 11 | 1 7 3 Device 4 | . 3 1 Storage 3 | 1 2 . Processor . | . . . Hackware 1 | . 1 . Protection 3 | . 1 2 Artifact . | . . . Weapon 12 | 2 3 7 Energy Gun 1 | . 1 . Energy Cannon 4 | . . 4 Ballistic Gun 4 | 2 . 2 Ballistic Cannon 2 | . 2 . Launcher 1 | . . 1 Special Weapon . | . . . Impact Weapon . | . . . Slashing Weapon . | . . . Piercing Weapon . | . . . Special Melee Weapon . | . . . Unidentified Prototypes . | . . . Parts Lost 5 | . 1 4 Power 1 | . . 1 Propulsion 2 | . . 2 Utility 2 | . 1 1 Weapon . | . . . Highest Loss Streak 3 | . 1 3 To Critical Strikes . | . . . Average Backups 6 | 2 9 4 Power . | . . . Propulsion . | . 2 . Utility 2 | . 4 2 Weapon 1 | 1 2 1 Tool/Special . | . . . Unused Backups 13 | . 2 11 Power 1 | . 1 . Propulsion 2 | . . 2 Utility 4 | . . 4 Weapon 5 | . 1 4 Tool/Special 1 | . . 1 Average Slot Usage (%) 89 | . 98 83 Engine 13 | . 14 13 Treads 27 | . 27 27 Device 2 | . 4 1 Storage 5 | . 14 . Hackware 2 | . 5 . Protection 8 | . 3 11 Energy Gun 2 | . 6 . Energy Cannon 12 | . . 19 Ballistic Gun 7 | . 9 6 Ballistic Cannon 5 | . 11 2 Peak Build Rating 17 | 6 10 17 Average Rating 11 | 5 8 14 On Entrance 4 | . 6 8 Avg Prop Armor Cover (%) . | . . . Naked Turns . | . . . Heaviest Build 39 | 11 32 39 Greatest Support 40 | 40 40 40 Greatest Overweight (x) . | . . . Average Overweight (x) . | . . . Largest Inventory Capacity 15 | 8 15 15 Average Capacity 7 | 7 11 5 Most Carried 12 | 5 12 12 Average Carried 6 | 2 9 4 Final Capacity 15 | 8 15 5 Final Carried 12 | 5 12 5 Class Distribution -------------------- 48% | Subdweller-Mutant 46% | Mutant 5% | Scavenger-Mutant Dominant Class ---------------- Mutant | -10/Materials Subdweller-Mutant | -10/Subcaves Resources | -11 -10 -10 ----------- Run | Yrd Mat Sub Matter Collected 1504 | 342 323 839 Remotely . | . . . Salvage Created 1631 | 180 868 583 Parts 111 | 20 57 34 Haulers Intercepted 2 | . 2 . Recyclers Shooed 2 | . 2 . Parts Field Recycled . | . . . Retrieved Matter . | . . . Parts Self-Destructed 7 | . . 7 Prevented . | . . . Parts Restored . | . . . Kills | -11 -10 -10 ------- Run | Yrd Mat Sub Combat Hostiles Destroyed 30 | . 15 15 Guns 16 | . 12 4 Cannons 12 | . 3 9 AOE 1 | . . 1 Classes Destroyed 12 | 3 7 2 Worker 4 | 1 3 . Builder 2 | . 2 . Tunneler 6 | 6 . . Hauler 2 | . 2 . Recycler 4 | 1 3 . Mechanic 1 | . 1 . Operator 1 | . 1 . Watcher 1 | . 1 . Swarmer 9 | . 9 . Grunt 6 | . 6 . Cobbler 1 | . . 1 Subdweller 15 | . . 15 Best Kill Streak 6 | 3 6 5 Combat Bots Only 5 | . 3 5 Max Kills in Single Turn 1 | 1 1 1 Gunslinging . | . . . Exploded 1 | . . 1 Melee . | . . . Uniques/NPCs Destroyed . | . . . Combat | -11 -10 -10 -------- Run | Yrd Mat Sub Hostile Shots Fired 142 | . 62 80 Missed 32 | . 15 17 Hits 110 | . 47 63 Projectile 110 | . 47 63 Critical Strikes 1 | . 1 . Damage Taken 1937 | . 472 1465 Core 253 | . 79 174 Absorbed by Shields . | . . . Redirected to Shielding 4 | . 4 . Regen/Repaired (Parts) 85 | . 85 . Core Remaining (%) 100 | 100 . . Volleys Fired 176 | 21 72 83 Largest 2 | 2 2 2 Hottest 160 | 40 70 160 Shots Fired 302 | 42 144 116 Gun 206 | 42 125 39 Cannon 95 | . 19 76 Launcher 1 | . . 1 Special . | . . . Kinetic 207 | 42 107 58 Thermal 95 | . 37 58 Explosive . | . . . Electromagnetic . | . . . Robot Hit Streak 16 | 5 8 16 Robot Miss Streak 3 | 3 3 3 Penetration Max . | . . . Secondary Targets 1 | . 1 . Max Gunslinging Chain 1 | . 1 . Shots Hit Robots 171 | 22 81 68 Core Hits 69 | 11 37 21 Critical Kills 2 | . . 2 Critical Parts Destroyed . | . . . Critical Strikes 4 | . 2 2 Burn 2 | . 2 . Meltdown 1 | . . 1 Destroy 1 | . . 1 Melee Attacks . | . . . Impact . | . . . Slashing . | . . . Piercing . | . . . Sneak Attacks . | . . . Combat Hostiles . | . . . Follow-up Attacks . | . . . Damage Inflicted 3208 | 260 1174 1774 Guns 1418 | 257 865 296 Cannons 1446 | . 106 1340 Explosions 341 | . 203 138 Melee . | . . . Ramming 3 | 3 . . Kinetic 1571 | 257 645 669 Thermal 1431 | . 326 1105 Explosive 203 | . 203 . Electromagnetic . | . . . Impact . | . . . Slashing . | . . . Piercing . | . . . Highest Corruption 2 | . 2 2 Average Corruption 2 | . 2 2 Corruption Purged . | . . . Corruption Blocked . | . . . Effects 59 | . 8 51 Message Errors 11 | . 3 8 Matter Fused 15 | . 1 14 Heat Flow Errors 9 | . . 9 Energy Discharges 8 | . 1 7 Parts Rejected 1 | . . 1 Data Loss (minor) 7 | . 2 5 Data Loss (major) 3 | . . 3 Misfires 4 | . 1 3 Weapon Failures 1 | . . 1 Overload Shots . | . . . Overflow Damage 84 | . 84 . Projectiles 28 | . 28 . Explosions 56 | . 56 . Melee . | . . . Knockbacks 7 | . 3 4 Impact . | . . . Kinetic 5 | . 1 4 Secondary 2 | . 2 . Self-Inflicted Damage . | . . . Shots . | . . . Rammed 1 | 1 . . Targets Rammed 1 | 1 . . Kicked . | . . . Crushed . | . . . Highest Temperature 284 | . 81 284 Average Temperature 46 | . 22 73 Received Heat Transfer 402 | . 78 324 Siege Activations . | . . . Martial Activations . | . . . Shielding Activations . | . . . Robots Disrupted . | . . . Combat Hostiles . | . . . Robots Corrupted . | . . . Combat Hostiles . | . . . Parts Fried . | . . . Impact Corruptions . | . . . Robots Melted 1 | . . 1 Combat Hostiles 1 | . . 1 Parts Melted 7 | . 3 4 Heat Transferred 2590 | . 1110 1480 Parts Sabotaged . | . . . Parts Stolen . | . . . Parts Stripped . | . . . Power Chain Reactions . | . . . Alert | -11 -10 -10 ------- Run | Yrd Mat Sub Maximum Alert Level . | . . . Low Security (%) 100 | 100 100 . Level 1 . | . . . Level 2 . | . . . Level 3 . | . . . Level 4 . | . . . Level 5 . | . . . High Security . | . . . Max Security . | . . . Peak Influence 181 | 10 181 . Initial . | . . . Average 80 | 1 91 . Influence Increases 653 | 40 613 . Destroy 0b10 Robot/C 300 | . 300 . Destroy 0b10 Robot/NC 105 | 40 65 . Destroy Leader 76 | . 76 . Successful Hack 16 | . 16 . Select Force Hacks 60 | . 60 . Disable Machine 60 | . 60 . Destroy Structure 36 | . 36 . Influence Decreases 653 | 40 558 55 Entered New Map 27 | . . 27 Time Decay 616 | 40 548 28 Lost Part 10 | . 10 . Squads Dispatched 3 | . 3 . Investigation 2 | . 2 . Extermination . | . . . Reinforcement 1 | . 1 . Assault . | . . . Garrison . | . . . Intercept . | . . . Searches Triggered . | . . . Construction Impeded . | . . . Haulers Reinforced . | . . . Active Scanning Responses . | . . . Cargo Convoy Interrupts . | . . . Stealth | -11 -10 -10 --------- Run | Yrd Mat Sub Distress Signals . | . . . Communications Jammed . | . . . Distress Signals . | . . . Times Spotted 45 | . 26 19 Peak Tracking Total 5 | . 4 5 Tactical Retreats . | . . . Traps | -11 -10 -10 ------- Run | Yrd Mat Sub Traps Triggered 3 | . 2 1 Indirectly . | . . . Trap Hack Attempts . | . . . Triggered . | . . . Disarmed . | . . . Reprogrammed . | . . . Reused . | . . . Traps Extracted . | . . . Installed . | . . . Triggered . | . . . Machines | -11 -10 -10 ---------- Run | Yrd Mat Sub Machines Disabled 5 | . 4 1 Max in Single Turn 2 | . 2 1 Machines Repaired . | . . . Machines Dismantled . | . . . Machines Sabotaged . | . . . Overloaded Fab Kills . | . . . Hacking | -11 -10 -10 --------- Run | Yrd Mat Sub Machines Accessed 10 | . 9 1 Terminals 6 | . 6 . Fabricators . | . . . Repair Stations 1 | . 1 . Recycling Units 2 | . 2 . Scanalyzers . | . . . Garrison Access . | . . . Total Hacks 37 | . 28 9 Successful 25 | . 16 9 Failed 12 | . 12 . Catastrophic 1 | . 1 . Database Lockouts . | . . . Manual 19 | . 19 . Terminals 19 | . 19 . Fabricators . | . . . Repair Stations 5 | . 5 . Recycling Units 4 | . 4 . Scanalyzers . | . . . Garrison Access . | . . . Terminal Hacks 11 | . 2 9 Record 8 | . . 8 Robot Analysis 1 | . 1 . Terminal Index 1 | . 1 . Proto ID Catalog 1 | . . 1 Fabricator Hacks . | . . . Repair Station Hacks 4 | . 4 . Scan Component 2 | . 2 . Repair 2 | . 2 . Recycling Unit Hacks . | . . . Scanalyzer . | . . . Garrison Access Hacks . | . . . Unauthorized Hacks 10 | . 10 . Terminals 8 | . 8 . Botnet 1 | . 1 . Disrupt 1 | . 1 . Operators 1 | . 1 . Skim 5 | . 5 . Fabricators . | . . . Repair Stations . | . . . Recycling Units 2 | . 2 . Tunnel 2 | . 2 . Scanalyzers . | . . . Garrison Access . | . . . Data Cores Recovered . | . . . Used . | . . . Hacking Detections 7 | . 7 . Full Trace Events . | . . . Feedback Events . | . . . Feedback Blocked . | . . . Robot Schematics Acquired . | . . . Robots Built . | . . . Authchips . | . . . Time . | . . . Total Robot Build Rating . | . . . Part Schematics Acquired . | . . . Parts Built . | . . . Authchips . | . . . Time . | . . . Total Part Build Rating . | . . . Part Studies Acquired . | . . . Parts Repaired 2 | . 2 . Time 58 | . 58 . Parts Recycled . | . . . Recycled Matter . | . . . Retrieved Matter . | . . . Retrieved Components . | . . . Parts Scanalyzed . | . . . Part Schematics Acquired . | . . . Parts Damaged . | . . . Bothacking | -11 -10 -10 ------------ Run | Yrd Mat Sub Used RIF Installer . | . . . Robots Hacked . | . . . Non-combat . | . . . Combat . | . . . Robot Hacks Applied . | . . . Relay Couplers Released . | . . . Fabnet Peak Effective % . | . . . Robots Rewired . | . . . Allies Hacked . | . . . Hacks Repelled . | . . . Allies | -11 -10 -10 -------- Run | Yrd Mat Sub Total Allies . | . . . Largest Group . | . . . Highest-Rated Group . | . . . Highest-Rated Ally . | . . . Total Orders . | . . . Ally Attacks . | . . . Total Damage . | . . . Kills . | . . . Allies Corrupted . | . . . Allies Melted 1 | . . 1 Intel | -11 -10 -10 ------- Run | Yrd Mat Sub Active Infowar (turns) 520 | . 520 . Seismic 520 | . 520 . Robot Analysis Total 1 | . 1 . Derelict Logs Recovered 1 | . . 1 Drone Launches . | . . . Drone Recoveries . | . . . Exploration | -11 -10 -10 ------------- Run | Yrd Mat Sub Turns Passed 4955 | 257 1699 2999 Spaces Moved 2092 | 88 706 1298 Core 5 | 5 . . Treads 2087 | 83 706 1298 Legs . | . . . Wheels . | . . . Hover . | . . . Flight . | . . . Fastest Speed 50 | 50 160 160 Average Speed 159 | 153 160 160 Slowest Speed 160 | 160 160 160 Overloaded Moves . | . . . Propulsion Burnouts . | . . . Robots Hopped . | . . . Potential Cave-ins . | . . . Cave-ins Triggered . | . . . Exploration Rate (%) 56 | 4 95 71 Regions Visited 2 Branch Regions 1 Pre-discovered Areas 4 | . 2 2 Known Exits Taken 1 | . 1 . Unknown Exits Taken 1 | 1 . . Scrap Searched 17 | . . 17 Spaces Dug . | . . . Terrain Destroyed 58 | . 39 19 Melee . | . . . Projectile 5 | . . 5 AOE 53 | . 39 14 Terrain Rammed . | . . . Walls Destroyed . | . . . Machines Disabled . | . . . Actions | -11 -10 -10 --------- Run | Yrd Mat Sub Total 3427 | 168 1142 2117 Wait 1046 | 48 327 671 Move 2090 | 87 705 1298 Hop . | . . . Pick Up 28 | 5 14 9 Fast Attach 17 | 6 4 7 Attach 4 | . 2 2 Detach 1 | . 1 . Swap 17 | . 6 11 Drop 37 | . 11 26 Fire 176 | 21 72 83 Melee . | . . . Ram . | . . . Kick . | . . . Crush 1 | 1 . . Escape Stasis . | . . . Rewire . | . . . Trap . | . . . Miscellaneous 10 | . . 10 Route ------- -11/Scrapyard -10/Materials (discovered 6 exits: [*Mat x3] / [*Min x2] / *Sub) -10/Subcaves (discovered 2 exits: *Mat x2) History --------- Turn | Location | Event 5 | -11/Scrapyard | Discovered new exit (range 14) 258 | -11/Scrapyard | Entered Materials 330 | -10/Materials | Build established: Mutant 660 | -10/Materials | Discovered new exit (range 6) 831 | -10/Materials | Discovered new exit (range 16) 1107 | -10/Materials | Discovered new exit (range 15) 1291 | -10/Materials | Discovered new exit (range 12) 1425 | -10/Materials | Repaired Terrain Scan Processor 1452 | -10/Materials | Repaired Lgt. Treads 1642 | -10/Materials | Learned Storage stockpile data 1683 | -10/Materials | Discovered new exit (range 10) 1707 | -10/Materials | Learned 2 Storage zone layouts 1760 | -10/Materials | Learned Storage stockpile data 1804 | -10/Materials | Identified exit to Subcaves 1804 | -10/Materials | Learned location of 1 exit from Materials 1837 | -10/Materials | Learned location of 1 exit from Storage 1861 | -10/Materials | Learned location of 2 exits from Mines 1897 | -10/Materials | Learned 4 Subcaves zone layouts 1941 | -10/Materials | Loaded intel: 1 repair station location 1957 | -10/Materials | Entered Subcaves 1958 | -10/Subcaves | Approached by a straggling Scientist 1958 | -10/Subcaves | Identified exit to Materials 2110 | -10/Subcaves | Ambushed by swarm of Subdwellers 2159 | -10/Subcaves | Core integrity fell below 50% 2161 | -10/Subcaves | Lost 5 allies 2183 | -10/Subcaves | Lost 3 parts (1p1n1u) 2633 | -10/Subcaves | Shifting Twisted Machinery released Riot Gun 2734 | -10/Subcaves | Shifting Twisted Machinery released Sub. Monowheel 2807 | -10/Subcaves | Disturbed a concealed Subdweller 2875 | -10/Subcaves | Build established: Subdweller-Mutant 3230 | -10/Subcaves | Shifting Twisted Machinery released Sub. Machine Gun 3237 | -10/Subcaves | Shifting Twisted Machinery released Mak. Flight Unit 3242 | -10/Subcaves | Learned location of Zion (-6) 3577 | -10/Subcaves | Discovered exit to Materials (range 13) 3726 | -10/Subcaves | Visited 4L-MR0's lab 3747 | -10/Subcaves | Found Rainbow Chip 4267 | -10/Subcaves | Core integrity fell below 20% 4757 | -10/Subcaves | Met a Zionite searching for "candidates" 4837 | -10/Subcaves | Disturbed a concealed Subdweller 4944 | -10/Subcaves | A Subdweller sparked back to life 4944 | -10/Subcaves | A Subdweller sparked back to life 4956 | -10/Subcaves | Destroyed by KK-S3V(R) with Subdweller Laser Last Messages --------------- 04830_ Found 45 Matter. 04831_ Searching scrap... 04831_ Found Mak. Flight Unit. 04831_ Found 36 Matter. 04837_ FE-MT4(R) angrily emerges from the Twisted Machinery. 04838_ Searching scrap... 04838_ Found Hvy. Battle Rifle. 04838_ Found Sub. Monowheel. 04838_ Found 43 Matter. 04839_ FE-MT4(R) destroyed. 04844_ Scrap Shield Fragment affixed to Scrap Shield (+23). 04850_ Scrap Shield Fragment affixed to Scrap Shield (+36). 04852_ Scrap Shield Fragment affixed to Scrap Shield (+45). 04856_ System corrupted: Heat flow error (+116). 04911_ System corrupted: Heat flow error (+193). 04935_ System corrupted: Matter fused (-9). 04944_ KK-S3V(R) creaks and sparks as it begins to move. 04944_ LY-TN0(R) creaks and sparks as it begins to move. 04945_ Lgt. Treads destroyed. 04946_ LY-TN0(R) destroyed. Map ----- +----------------------------------------------------+ | ##??????????# #?# #### ##??????????????? | | ???????????## ## # #???????????????? | | ???????????# #???????????????? | | ?????????### ## #???????????????? | | ?????????# # # # ##???????????????? | | ?????????# ## ### ### #???????????????? | | ????####?# ### #?##?# ##???????????????? | | ????#=%### ## ###???## #???????????????? | | ????#[ #%#" ### ##??# #???????????????? | | ????##[]! ## ##?## ##???????????????? | | ????#%]"##" #### ### ##???????????????? | | ????#=%## #??## ## #???????????????? | | ????#### ##??## ## ###?????????????? | | ?????# ###?# z #?????????????? | | ?????## #### z #?????????????? | | ??????# #### #?????????????? | | ??????# ### ###### #?????????????? | | ??????####??## #???## ##?????????????? | | ??????????????# ##????# ##??????????????? | | ??????????????####????## ##???????????????? | | ??????????????????????# #????????????????? | | ??????????????????????# ##???????????????? | | ??????????????????????# #???????????????? | | ??????????????????????## #???????????????? | | ??????????????????????## #???????????????? | | ????????????????????### @ #???????????????? | | ???????????????????## #???????????????? | | ??????????????????## ##??????????????? | | ?????????????????## ##?????????????? | | ?????????????????# #?????????????? | | ?????????????????# #?????????????? | | ?????????????????# #?????????????? | | ??????????????##;; R ##?????????????? | | ??????????????# R ####??????????????? | | ?????????????? = ;# ##?????????????????? | | ?#?????????? %! ;###??????????????????? | | ? ####????? * ##????????????????????? | | ? ?????? # #????????????????????? | | ? ??????? ?###; ???????????????????????? | | ? ??????? ????? ???????????????????????? | | # ?????? ?????? ????????????????????????? | | #????????????# ????????????????????????? | | #????????????#?????????????????????????? | | #??????????????????????????????????????? | | #??????????????????????????????????????? | | #??????????????????????????????????????? | | #??????????????????????????????????????? | | # #??????????????????????????????????????? | | # #??????????????????????????????????????? | | #??????????????????????????????????????? | +----------------------------------------------------+ Best States ------------- Heat Dissipation 35 Energy Generation 15 Energy Capacity 250 Matter Stores 300 Matter Capacity 300 Sight Range 16 Terrain Scan Density 10 Armor Coverage 800 Core Shielding 20 Evasion (%) 40 Recoil Reduction 2 Offensive Hacking 10 Item Schematics ----------------- None Robot Schematics ------------------ None Fabricated ------------ Nothing Repaired ---------- Terrain Scan Processor | 13% | -10/Materials Lgt. Treads | 52% | -10/Materials Studied --------- None Alien Tech Used ----------------- None Achievements -------------- Survival Of The Most Covered Challenges ------------ None Game ------ Seed EnhancedReinforcedMonowheel Manual? 0 Play Time 00:27:13 Cumulative 590.1 hours Start 2026.03.01 @ 18:03:38 End 2026.03.01 @ 18:29:29 Sessions 1 Manual Loads 0 Difficulty Rogue Special Mode None Game No. 234 Rogue 234 Adventurer 0 Explorer 0 Win Type - Total 23 Types 10/2/7/1/0/0/0/2/0/1 Lore% 91 Gallery% 83 Achievement% 63 Wizard Run 0 Options --------- Layout 0 ASCII 0 Keyboard 1 Movement Numpad Keybinds 0 Fullscreen 2 Font 18/SmallcapsGlow Map View 76x50 Zoom Use 0% Tactical HUD 1 Map Filters NONE Filters NONE Steam 1 RUN: 55663b30-b201-4ac0-be15-abbcab0d85ae